[Event "Late-Titled-Tuesday-Blitz-September-05-2023"]
[Site "Chess.com"]
[Date "2023.09.05"]
[Round "5"]
[White "FredddieCroderg"]
[Black "AquivaRubinstein"]
[Result "0-1"]
[WhiteElo "2300"]
[BlackElo "2485"]
[TimeControl "180+1"]
[EndTime "14:56:46 PDT"]
[Termination "AquivaRubinstein won by checkmate"]

1. e4 {[%clk 0:03:00.9]} 1... Nf6 {[%clk 0:02:58.7]} 2. d3 {[%clk 0:02:59.3]}
2... d5 {[%clk 0:02:56.9]} 3. Nd2 {[%clk 0:02:59.8]} 3... c5 {[%clk 0:02:56.5]}
4. Ngf3 {[%clk 0:02:59.6]} 4... Nc6 {[%clk 0:02:56.7]} 5. Be2 {[%clk 0:03:00.1]}
5... e5 {[%clk 0:02:55.9]} 6. O-O {[%clk 0:03:00.5]} 6... Be7 {[%clk 0:02:56]}
7. exd5 {[%clk 0:03:01]} 7... Nxd5 {[%clk 0:02:55.8]} 8. Re1 {[%clk 0:03:01.6]}
8... O-O {[%clk 0:02:55.3]} 9. Bf1 {[%clk 0:03:01.5]} 9... f6 {[%clk 0:02:55.3]}
10. c3 {[%clk 0:02:53.5]} 10... Bg4 {[%clk 0:02:45.1]} 11. h3 {[%clk 0:02:09.5]}
11... Bh5 {[%clk 0:02:44.6]} 12. Qb3 {[%clk 0:01:56.2]} 12... Na5 {[%clk
0:02:38.1]} 13. Qc2 {[%clk 0:01:54.7]} 13... Kh8 {[%clk 0:02:20.5]} 14. a3
{[%clk 0:01:46.7]} 14... h6 {[%clk 0:02:11.8]} 15. b4 {[%clk 0:01:46.3]} 15...
Nc6 {[%clk 0:02:01.1]} 16. g3 {[%clk 0:01:28]} 16... cxb4 {[%clk 0:01:57.3]} 17.
axb4 {[%clk 0:01:27.8]} 17... a6 {[%clk 0:01:57.2]} 18. Bb2 {[%clk 0:01:20.5]}
18... Rc8 {[%clk 0:01:55.9]} 19. Qb3 {[%clk 0:01:17.6]} 19... Qd7 {[%clk
0:01:39.1]} 20. b5 {[%clk 0:01:16.2]} 20... axb5 {[%clk 0:01:32.4]} 21. Qxb5
{[%clk 0:01:16.8]} 21... Rfd8 {[%clk 0:01:23.4]} 22. c4 {[%clk 0:00:49.2]} 22...
Nc7 {[%clk 0:01:20.5]} 23. Qb6 {[%clk 0:00:47.3]} 23... Ne6 {[%clk 0:01:18.1]}
24. Reb1 {[%clk 0:00:41.4]} 24... Bc5 {[%clk 0:01:11.2]} 25. Qb3 {[%clk
0:00:40.8]} 25... Ned4 {[%clk 0:01:04.5]} 26. Bxd4 {[%clk 0:00:39.9]} 26... Nxd4
{[%clk 0:01:03]} 27. Qxb7 {[%clk 0:00:36.4]} 27... Qxb7 {[%clk 0:00:59]} 28.
Rxb7 {[%clk 0:00:35.1]} 28... Nxf3+ {[%clk 0:00:59.6]} 29. Nxf3 {[%clk
0:00:35.6]} 29... Bxf3 {[%clk 0:01:00.1]} 30. Rb5 {[%clk 0:00:27.7]} 30... Bd4
{[%clk 0:00:56.5]} 31. Ra6 {[%clk 0:00:25.1]} 31... Ra8 {[%clk 0:00:51.3]} 32.
Rba5 {[%clk 0:00:24.9]} 32... Rxa6 {[%clk 0:00:50.4]} 33. Rxa6 {[%clk
0:00:25.8]} 33... Ra8 {[%clk 0:00:49.9]} 34. Rxa8+ {[%clk 0:00:22.5]} 34... Bxa8
{[%clk 0:00:50.8]} 35. Be2 {[%clk 0:00:22.3]} 35... f5 {[%clk 0:00:45.5]} 36.
Bh5 {[%clk 0:00:20.9]} 36... Kh7 {[%clk 0:00:42.1]} 37. Be8 {[%clk 0:00:20.7]}
37... g5 {[%clk 0:00:40.4]} 38. Bd7 {[%clk 0:00:20.2]} 38... Kg6 {[%clk
0:00:38]} 39. Be8+ {[%clk 0:00:20.8]} 39... Kf6 {[%clk 0:00:38.1]} 40. Bd7
{[%clk 0:00:20.8]} 40... e4 {[%clk 0:00:33.9]} 41. dxe4 {[%clk 0:00:19.4]} 41...
Bxe4 {[%clk 0:00:34.1]} 42. Bb5 {[%clk 0:00:17.3]} 42... Ke5 {[%clk 0:00:33.9]}
43. Be8 {[%clk 0:00:17.3]} 43... Bd3 {[%clk 0:00:33.2]} 44. Bf7 {[%clk
0:00:15.6]} 44... Bc5 {[%clk 0:00:30.4]} 45. Kg2 {[%clk 0:00:15.8]} 45... Kd4
{[%clk 0:00:30.4]} 46. Be6 {[%clk 0:00:14.2]} 46... Be4+ {[%clk 0:00:29.9]} 47.
Kg1 {[%clk 0:00:13]} 47... Kd3 {[%clk 0:00:29.8]} 48. Bf7 {[%clk 0:00:12.3]}
48... Ke2 {[%clk 0:00:29.6]} 49. Kh2 {[%clk 0:00:12.7]} 49... Kxf2 {[%clk
0:00:28.3]} 50. h4 {[%clk 0:00:13.2]} 50... Bd6 {[%clk 0:00:28]} 51. Kh3 {[%clk
0:00:13.3]} 51... g4+ {[%clk 0:00:27.3]} 52. Kh2 {[%clk 0:00:13.6]} 52... Bxg3#
{[%clk 0:00:27.4]} 0-1

[Event "Late-Titled-Tuesday-Blitz-September-05-2023"]
[Site "Chess.com"]
[Date "2023.09.05"]
[Round "5"]
[White "Zhigalko_Sergei"]
[Black "mishanick"]
[Result "0-1"]
[WhiteElo "2893"]
[BlackElo "3077"]
[TimeControl "180+1"]
[EndTime "14:56:50 PDT"]
[Termination "mishanick won on time"]

1. e4 {[%clk 0:03:00.9]} 1... c5 {[%clk 0:03:00.1]} 2. Nf3 {[%clk 0:03:00.2]}
2... d6 {[%clk 0:02:59.6]} 3. Bb5+ {[%clk 0:02:56.9]} 3... Bd7 {[%clk
0:02:58.7]} 4. Bxd7+ {[%clk 0:02:51.4]} 4... Nxd7 {[%clk 0:02:59.6]} 5. c4
{[%clk 0:02:47.6]} 5... Ne5 {[%clk 0:02:59.3]} 6. Nxe5 {[%clk 0:02:42]} 6...
dxe5 {[%clk 0:03:00.2]} 7. d3 {[%clk 0:02:38.8]} 7... e6 {[%clk 0:03:00.1]} 8.
Be3 {[%clk 0:02:37.2]} 8... b6 {[%clk 0:02:49.6]} 9. O-O {[%clk 0:02:35.5]} 9...
Ne7 {[%clk 0:02:50.2]} 10. Qe2 {[%clk 0:02:16.7]} 10... Nc6 {[%clk 0:02:50.2]}
11. Nd2 {[%clk 0:02:14.6]} 11... Bd6 {[%clk 0:02:50.5]} 12. Nf3 {[%clk
0:01:37.9]} 12... O-O {[%clk 0:02:46.3]} 13. Bd2 {[%clk 0:01:30.4]} 13... f5
{[%clk 0:02:43.6]} 14. Bc3 {[%clk 0:01:26.1]} 14... Qf6 {[%clk 0:02:42.3]} 15.
Rfe1 {[%clk 0:01:20.7]} 15... Rae8 {[%clk 0:02:38.1]} 16. a3 {[%clk 0:01:17]}
16... g5 {[%clk 0:02:19.1]} 17. b4 {[%clk 0:01:08.8]} 17... g4 {[%clk
0:02:17.7]} 18. Nd2 {[%clk 0:01:09.1]} 18... cxb4 {[%clk 0:02:12.1]} 19. axb4
{[%clk 0:01:09.1]} 19... Bxb4 {[%clk 0:02:12.8]} 20. Bxb4 {[%clk 0:01:08.6]}
20... Nxb4 {[%clk 0:02:13.7]} 21. Rxa7 {[%clk 0:01:08.5]} 21... Nc2 {[%clk
0:02:14.2]} 22. Rb1 {[%clk 0:00:58.3]} 22... Nd4 {[%clk 0:02:14]} 23. Qe1 {[%clk
0:00:56.2]} 23... Qg5 {[%clk 0:01:49.4]} 24. Rxb6 {[%clk 0:00:42.5]} 24... Rb8
{[%clk 0:01:50]} 25. Rxb8 {[%clk 0:00:29.1]} 25... Rxb8 {[%clk 0:01:50.9]} 26.
Nf1 {[%clk 0:00:28]} 26... f4 {[%clk 0:01:24.8]} 27. Qa1 {[%clk 0:00:14.3]}
27... Qd8 {[%clk 0:00:25.6]} 28. Kh1 {[%clk 0:00:06.5]} 28... Qb6 {[%clk
0:00:21]} 29. Ra8 {[%clk 0:00:05.3]} 29... Kf7 {[%clk 0:00:21.1]} 30. Rxb8
{[%clk 0:00:04.2]} 30... Qxb8 {[%clk 0:00:22]} 31. Qd1 {[%clk 0:00:02.3]} 31...
h5 {[%clk 0:00:20.2]} 32. h3 {[%clk 0:00:02.9]} 32... Qb2 {[%clk 0:00:20.1]} 33.
Kg1 {[%clk 0:00:02.6]} 33... Ne2+ {[%clk 0:00:14.7]} 34. Kh1 {[%clk 0:00:02.3]}
34... Nc3 {[%clk 0:00:09]} 35. Qd2 {[%clk 0:00:01.5]} 35... Qa1 {[%clk
0:00:07.4]} 36. Kg1 {[%clk 0:00:01.4]} 36... f3 {[%clk 0:00:07.8]} 37. hxg4
{[%clk 0:00:01.9]} 37... Ne2+ {[%clk 0:00:07.6]} 38. Kh2 {[%clk 0:00:02]} 38...
Qxf1 {[%clk 0:00:08.3]} 39. gxf3 {[%clk 0:00:01.4]} 39... Qxf2+ {[%clk
0:00:08.7]} 0-1

[Event "Late-Titled-Tuesday-Blitz-September-05-2023"]
[Site "Chess.com"]
[Date "2023.09.05"]
[Round "5"]
[White "SergioMoralesG"]
[Black "ketster"]
[Result "1-0"]
[WhiteElo "2408"]
[BlackElo "2529"]
[TimeControl "180+1"]
[EndTime "14:56:52 PDT"]
[Termination "SergioMoralesG won by checkmate"]

1. d4 {[%clk 0:03:00.9]} 1... d5 {[%clk 0:02:57]} 2. c4 {[%clk 0:03:00.3]} 2...
dxc4 {[%clk 0:02:57.2]} 3. Nf3 {[%clk 0:03:00]} 3... a6 {[%clk 0:02:56.8]} 4. a4
{[%clk 0:02:57.5]} 4... Nc6 {[%clk 0:02:49.6]} 5. e3 {[%clk 0:02:49.4]} 5... Bg4
{[%clk 0:02:42]} 6. Bxc4 {[%clk 0:02:47.4]} 6... e6 {[%clk 0:02:41.1]} 7. O-O
{[%clk 0:02:43.5]} 7... Nf6 {[%clk 0:02:36]} 8. h3 {[%clk 0:02:42.4]} 8... Bh5
{[%clk 0:02:34.1]} 9. Nc3 {[%clk 0:02:41.1]} 9... Bd6 {[%clk 0:02:32.1]} 10. b3
{[%clk 0:02:37.2]} 10... O-O {[%clk 0:02:26.6]} 11. Be2 {[%clk 0:02:33.3]} 11...
Qe8 {[%clk 0:02:18.4]} 12. Bb2 {[%clk 0:02:30.3]} 12... Rd8 {[%clk 0:02:17]} 13.
Rc1 {[%clk 0:02:19.8]} 13... e5 {[%clk 0:02:10.1]} 14. d5 {[%clk 0:02:17.5]}
14... e4 {[%clk 0:01:48.9]} 15. dxc6 {[%clk 0:02:07.1]} 15... exf3 {[%clk
0:01:41.5]} 16. Bxf3 {[%clk 0:02:05.1]} 16... Bh2+ {[%clk 0:01:36.7]} 17. Kxh2
{[%clk 0:01:53.8]} 17... Rxd1 {[%clk 0:01:37.6]} 18. Rfxd1 {[%clk 0:01:27.4]}
18... Bxf3 {[%clk 0:01:30.2]} 19. gxf3 {[%clk 0:01:28.3]} 19... bxc6 {[%clk
0:01:13.3]} 20. Rg1 {[%clk 0:01:23.1]} 20... g6 {[%clk 0:01:04.8]} 21. Ne2
{[%clk 0:01:19.9]} 21... Nd5 {[%clk 0:00:56.2]} 22. Ba3 {[%clk 0:00:54.2]} 22...
Qe5+ {[%clk 0:00:24.6]} 23. f4 {[%clk 0:00:53.5]} 23... Qh5 {[%clk 0:00:21.9]}
24. Nd4 {[%clk 0:00:26.4]} 24... Rb8 {[%clk 0:00:13]} 25. Rg5 {[%clk 0:00:25.5]}
25... Qh4 {[%clk 0:00:10.9]} 26. Kg2 {[%clk 0:00:23.9]} 26... h6 {[%clk
0:00:05.6]} 27. Nf3 {[%clk 0:00:13.7]} 27... hxg5 {[%clk 0:00:02.8]} 28. Nxh4
{[%clk 0:00:13.5]} 28... gxh4 {[%clk 0:00:03.7]} 29. Rxc6 {[%clk 0:00:10.7]}
29... Rxb3 {[%clk 0:00:03.9]} 30. Bc1 {[%clk 0:00:11.3]} 30... a5 {[%clk
0:00:02.4]} 31. e4 {[%clk 0:00:10.1]} 31... Nxf4+ {[%clk 0:00:01.9]} 32. Bxf4
{[%clk 0:00:09.3]} 32... Rb4 {[%clk 0:00:01.7]} 33. Bxc7 {[%clk 0:00:08]} 33...
Rxa4 {[%clk 0:00:02.2]} 34. Kf3 {[%clk 0:00:07.6]} 34... Ra3+ {[%clk 0:00:02.4]}
35. Kg4 {[%clk 0:00:07.4]} 35... Ra2 {[%clk 0:00:02.5]} 36. f4 {[%clk
0:00:05.6]} 36... a4 {[%clk 0:00:03]} 37. Kxh4 {[%clk 0:00:05.3]} 37... Rf2
{[%clk 0:00:02.3]} 38. Be5 {[%clk 0:00:05.4]} 38... a3 {[%clk 0:00:02.3]} 39.
Rc8+ {[%clk 0:00:05]} 39... Kh7 {[%clk 0:00:03]} 40. Rh8# {[%clk 0:00:05.5]} 1-0

[Event "Late-Titled-Tuesday-Blitz-September-05-2023"]
[Site "Chess.com"]
[Date "2023.09.05"]
[Round "5"]
[White "vanyakuba"]
[Black "Rinqed222"]
[Result "1-0"]
[WhiteElo "2401"]
[BlackElo "2220"]
[TimeControl "180+1"]
[EndTime "14:56:57 PDT"]
[Termination "vanyakuba won by resignation"]

1. e4 {[%clk 0:02:57.5]} 1... e6 {[%clk 0:03:00.2]} 2. d4 {[%clk 0:01:38.6]}
2... d5 {[%clk 0:02:58.9]} 3. exd5 {[%clk 0:01:38.9]} 3... exd5 {[%clk
0:02:58.8]} 4. Nf3 {[%clk 0:01:39.8]} 4... Nc6 {[%clk 0:02:58.8]} 5. c4 {[%clk
0:01:39.8]} 5... Bb4+ {[%clk 0:02:56.9]} 6. Nc3 {[%clk 0:01:39.2]} 6... Nf6
{[%clk 0:02:55.4]} 7. Bd3 {[%clk 0:01:38.3]} 7... dxc4 {[%clk 0:02:54.9]} 8.
Bxc4 {[%clk 0:01:39.2]} 8... O-O {[%clk 0:02:55.2]} 9. O-O {[%clk 0:01:39.1]}
9... Bg4 {[%clk 0:02:54.9]} 10. Be3 {[%clk 0:01:38.8]} 10... Bxc3 {[%clk
0:02:37.8]} 11. bxc3 {[%clk 0:01:37.5]} 11... Nd5 {[%clk 0:02:38.7]} 12. Bd2
{[%clk 0:01:34]} 12... Na5 {[%clk 0:02:32.6]} 13. Bd3 {[%clk 0:01:23.9]} 13...
Nb6 {[%clk 0:02:29]} 14. Rb1 {[%clk 0:01:05.1]} 14... Rb8 {[%clk 0:02:25.2]} 15.
h3 {[%clk 0:01:04.4]} 15... Bh5 {[%clk 0:02:23.3]} 16. Bf4 {[%clk 0:01:04.4]}
16... Bg6 {[%clk 0:02:15.6]} 17. Rb5 {[%clk 0:00:54.2]} 17... Bxd3 {[%clk
0:02:01.2]} 18. Qxd3 {[%clk 0:00:55.1]} 18... Nac4 {[%clk 0:02:01.6]} 19. Rc5
{[%clk 0:00:54.3]} 19... Nd6 {[%clk 0:01:58.9]} 20. Rh5 {[%clk 0:00:46.5]} 20...
g6 {[%clk 0:01:56.1]} 21. Rc5 {[%clk 0:00:36.3]} 21... Nd7 {[%clk 0:01:55.2]}
22. Ra5 {[%clk 0:00:34.6]} 22... a6 {[%clk 0:01:54.8]} 23. Ne5 {[%clk
0:00:29.7]} 23... Nf6 {[%clk 0:01:50.1]} 24. Qf3 {[%clk 0:00:26.5]} 24... Nde4
{[%clk 0:01:41.9]} 25. Re1 {[%clk 0:00:24.5]} 25... Nd6 {[%clk 0:01:28.3]} 26.
Bg5 {[%clk 0:00:24.2]} 26... Nf5 {[%clk 0:01:17]} 27. g4 {[%clk 0:00:16.8]}
27... h6 {[%clk 0:01:12]} 28. Bxf6 {[%clk 0:00:16.2]} 28... Qxf6 {[%clk
0:01:12.1]} 29. gxf5 {[%clk 0:00:15.9]} 29... gxf5 {[%clk 0:01:09.3]} 30. Nd7
{[%clk 0:00:15.6]} 30... Qg5+ {[%clk 0:01:08.1]} 31. Qg3 {[%clk 0:00:15.2]}
31... Qxg3+ {[%clk 0:01:07.5]} 32. fxg3 {[%clk 0:00:16.1]} 32... Rfe8 {[%clk
0:01:07.1]} 33. Rae5 {[%clk 0:00:10.7]} 33... Red8 {[%clk 0:01:04.1]} 34. Nf6+
{[%clk 0:00:09.2]} 34... Kg7 {[%clk 0:01:04.5]} 35. Nh5+ {[%clk 0:00:09.4]}
35... Kg6 {[%clk 0:01:04.6]} 36. Nf4+ {[%clk 0:00:09.8]} 36... Kf6 {[%clk
0:01:04.8]} 37. Re7 {[%clk 0:00:08.2]} 37... c5 {[%clk 0:00:57.6]} 38. d5 {[%clk
0:00:08]} 38... b5 {[%clk 0:00:54.3]} 39. Rc7 {[%clk 0:00:07.8]} 39... b4 {[%clk
0:00:54.2]} 40. c4 {[%clk 0:00:08]} 40... a5 {[%clk 0:00:51.2]} 41. Rxc5 {[%clk
0:00:07.8]} 41... a4 {[%clk 0:00:51.8]} 42. Rc6+ {[%clk 0:00:08.5]} 42... Kg5
{[%clk 0:00:51.2]} 43. Kf2 {[%clk 0:00:08.2]} 43... b3 {[%clk 0:00:51.2]} 44.
axb3 {[%clk 0:00:09]} 44... axb3 {[%clk 0:00:51.8]} 45. h4+ {[%clk 0:00:08.9]}
45... Kg4 {[%clk 0:00:51.7]} 46. Ng2 {[%clk 0:00:07.1]} 46... b2 {[%clk
0:00:49.4]} 47. Ne3+ {[%clk 0:00:07.7]} 47... Kh5 {[%clk 0:00:48.9]} 48. Rb1
{[%clk 0:00:06.6]} 48... Re8 {[%clk 0:00:47.8]} 49. d6 {[%clk 0:00:05.5]} 49...
Rec8 {[%clk 0:00:46.3]} 50. Rxc8 {[%clk 0:00:04.9]} 50... Rxc8 {[%clk
0:00:47.2]} 51. Rxb2 {[%clk 0:00:05.1]} 51... f4 {[%clk 0:00:46.2]} 52. g4+
{[%clk 0:00:04.6]} 52... Kxh4 {[%clk 0:00:46.4]} 53. Nf5+ {[%clk 0:00:03.3]}
53... Kxg4 {[%clk 0:00:46.4]} 54. Ne7 {[%clk 0:00:04.2]} 54... Rd8 {[%clk
0:00:46]} 55. Rd2 {[%clk 0:00:04.3]} 55... Kg5 {[%clk 0:00:45.6]} 56. c5 {[%clk
0:00:04.7]} 56... Kf6 {[%clk 0:00:46]} 57. c6 {[%clk 0:00:05.3]} 57... Ke6
{[%clk 0:00:46.3]} 58. c7 {[%clk 0:00:05.4]} 58... Rxd6 {[%clk 0:00:45.8]} 59.
Rxd6+ {[%clk 0:00:04.3]} 59... Kxd6 {[%clk 0:00:46.4]} 60. c8=Q {[%clk
0:00:04.8]} 60... Kxe7 {[%clk 0:00:47.3]} 61. Qh3 {[%clk 0:00:04.9]} 1-0

[Event "Late-Titled-Tuesday-Blitz-September-05-2023"]
[Site "Chess.com"]
[Date "2023.09.05"]
[Round "5"]
[White "Defenstrator"]
[Black "santosalberto1987"]
[Result "0-1"]
[WhiteElo "2303"]
[BlackElo "2539"]
[TimeControl "180+1"]
[EndTime "14:56:58 PDT"]
[Termination "santosalberto1987 won on time"]

1. e4 {[%clk 0:03:00]} 1... e6 {[%clk 0:02:59.1]} 2. a3 {[%clk 0:02:52.8]} 2...
d5 {[%clk 0:02:58.5]} 3. e5 {[%clk 0:02:53.4]} 3... c5 {[%clk 0:02:52.4]} 4. b4
{[%clk 0:02:52.1]} 4... b6 {[%clk 0:02:51.7]} 5. c3 {[%clk 0:02:34.3]} 5... Qd7
{[%clk 0:02:48]} 6. d4 {[%clk 0:02:32.1]} 6... Ba6 {[%clk 0:02:47.2]} 7. f4
{[%clk 0:02:17.8]} 7... Bxf1 {[%clk 0:02:46.1]} 8. Kxf1 {[%clk 0:02:17.8]} 8...
cxd4 {[%clk 0:02:44.5]} 9. cxd4 {[%clk 0:02:17.8]} 9... Nc6 {[%clk 0:02:45.1]}
10. Nf3 {[%clk 0:02:17.1]} 10... Nge7 {[%clk 0:02:42.2]} 11. Nc3 {[%clk
0:02:12.3]} 11... h5 {[%clk 0:02:41.4]} 12. Be3 {[%clk 0:02:05.6]} 12... Nf5
{[%clk 0:02:41.1]} 13. Bf2 {[%clk 0:02:05.9]} 13... Be7 {[%clk 0:02:39.9]} 14.
g3 {[%clk 0:02:06.7]} 14... Rc8 {[%clk 0:02:35.2]} 15. Rc1 {[%clk 0:01:58.5]}
15... a5 {[%clk 0:02:10.5]} 16. b5 {[%clk 0:01:58.4]} 16... Na7 {[%clk
0:02:10.2]} 17. a4 {[%clk 0:01:57]} 17... Ba3 {[%clk 0:02:06.1]} 18. Rc2 {[%clk
0:01:55.5]} 18... g6 {[%clk 0:01:56.3]} 19. Kg2 {[%clk 0:01:47.6]} 19... Rc4
{[%clk 0:01:53.6]} 20. h3 {[%clk 0:01:28.8]} 20... Qc7 {[%clk 0:01:48.3]} 21.
Qd3 {[%clk 0:01:20.4]} 21... Ke7 {[%clk 0:01:32]} 22. g4 {[%clk 0:01:15.3]}
22... hxg4 {[%clk 0:01:30.3]} 23. hxg4 {[%clk 0:01:13.4]} 23... Rxh1 {[%clk
0:01:31.1]} 24. Kxh1 {[%clk 0:01:09.5]} 24... Nh6 {[%clk 0:01:31.3]} 25. Nh2
{[%clk 0:00:51.7]} 25... Bb4 {[%clk 0:01:29.1]} 26. Be1 {[%clk 0:00:50.4]} 26...
Nc8 {[%clk 0:01:21.1]} 27. Qh3 {[%clk 0:00:46.8]} 27... Ng8 {[%clk 0:01:16.7]}
28. f5 {[%clk 0:00:41.9]} 28... Ke8 {[%clk 0:01:01.8]} 29. f6 {[%clk 0:00:35]}
29... Rxd4 {[%clk 0:00:50]} 30. Qh8 {[%clk 0:00:24.3]} 30... Qxe5 {[%clk
0:00:32.2]} 31. Qxg8+ {[%clk 0:00:24.7]} 31... Bf8 {[%clk 0:00:31.5]} 32. Ne2
{[%clk 0:00:13.9]} 32... Rc4 {[%clk 0:00:28.3]} 33. Rxc4 {[%clk 0:00:11.9]}
33... dxc4 {[%clk 0:00:29.2]} 34. Bd2 {[%clk 0:00:06]} 34... Qxe2 {[%clk
0:00:17.9]} 35. Kg1 {[%clk 0:00:06.8]} 35... Qxd2 {[%clk 0:00:17.5]} 36. Nf3
{[%clk 0:00:06.6]} 36... Qe3+ {[%clk 0:00:15.5]} 37. Kg2 {[%clk 0:00:07.1]}
37... Nd6 {[%clk 0:00:16.1]} 0-1

[Event "Late-Titled-Tuesday-Blitz-September-05-2023"]
[Site "Chess.com"]
[Date "2023.09.05"]
[Round "5"]
[White "PepeCuenca"]
[Black "jorquerino"]
[Result "1-0"]
[WhiteElo "2662"]
[BlackElo "2350"]
[TimeControl "180+1"]
[EndTime "14:56:59 PDT"]
[Termination "PepeCuenca won on time"]

1. c4 {[%clk 0:03:00.1]} 1... Nf6 {[%clk 0:02:58.5]} 2. Nf3 {[%clk 0:02:57.3]}
2... g6 {[%clk 0:02:57.8]} 3. Nc3 {[%clk 0:02:56.9]} 3... Bg7 {[%clk 0:02:58]}
4. e4 {[%clk 0:02:57.1]} 4... d6 {[%clk 0:02:57.8]} 5. d4 {[%clk 0:02:57.6]}
5... O-O {[%clk 0:02:57.6]} 6. Be2 {[%clk 0:02:58.3]} 6... e5 {[%clk 0:02:57.4]}
7. d5 {[%clk 0:02:58.9]} 7... Nbd7 {[%clk 0:02:49.4]} 8. Bg5 {[%clk 0:02:53.4]}
8... h6 {[%clk 0:02:48.3]} 9. Bh4 {[%clk 0:02:53.3]} 9... g5 {[%clk 0:02:37.4]}
10. Bg3 {[%clk 0:02:53]} 10... Nh5 {[%clk 0:02:37.8]} 11. Nd2 {[%clk 0:02:39.2]}
11... Nf4 {[%clk 0:02:31.8]} 12. O-O {[%clk 0:02:35.3]} 12... a5 {[%clk
0:01:46.1]} 13. Bg4 {[%clk 0:02:22]} 13... Nc5 {[%clk 0:01:32.2]} 14. Bxc8
{[%clk 0:02:21.8]} 14... Qxc8 {[%clk 0:01:30.5]} 15. Re1 {[%clk 0:01:50]} 15...
f5 {[%clk 0:01:20.9]} 16. exf5 {[%clk 0:01:47.5]} 16... Qxf5 {[%clk 0:01:21.8]}
17. Nde4 {[%clk 0:01:43.9]} 17... b6 {[%clk 0:01:12]} 18. Re3 {[%clk 0:00:53.5]}
18... Rf7 {[%clk 0:01:09.5]} 19. h3 {[%clk 0:00:50.7]} 19... Raf8 {[%clk
0:01:07.7]} 20. Qg4 {[%clk 0:00:45.5]} 20... Qg6 {[%clk 0:01:05.4]} 21. Rf1
{[%clk 0:00:32.9]} 21... Ncd3 {[%clk 0:00:50.9]} 22. b3 {[%clk 0:00:29.7]} 22...
Nc5 {[%clk 0:00:50.9]} 23. Nxc5 {[%clk 0:00:27.4]} 23... bxc5 {[%clk 0:00:50]}
24. Ne4 {[%clk 0:00:28]} 24... Kh8 {[%clk 0:00:44.8]} 25. h4 {[%clk 0:00:20.1]}
25... gxh4 {[%clk 0:00:40.2]} 26. Qxh4 {[%clk 0:00:21]} 26... Rg8 {[%clk
0:00:35.4]} 27. Rfe1 {[%clk 0:00:20.1]} 27... Bf8 {[%clk 0:00:33.4]} 28. Rf3
{[%clk 0:00:18.4]} 28... Nh5 {[%clk 0:00:26]} 29. Rxf7 {[%clk 0:00:17.4]} 29...
Qxf7 {[%clk 0:00:26.9]} 30. Re3 {[%clk 0:00:15.5]} 30... Be7 {[%clk 0:00:22.9]}
31. Qh2 {[%clk 0:00:13.1]} 31... Kh7 {[%clk 0:00:17.8]} 32. Qh3 {[%clk 0:00:12]}
32... Nf4 {[%clk 0:00:14.6]} 33. Bxf4 {[%clk 0:00:11.1]} 33... exf4 {[%clk
0:00:11.3]} 34. Re1 {[%clk 0:00:08.7]} 34... f3 {[%clk 0:00:10.6]} 35. g3 {[%clk
0:00:08.8]} 35... Qg6 {[%clk 0:00:08.2]} 36. Qe6 {[%clk 0:00:08.4]} 36... Rg7
{[%clk 0:00:06.5]} 37. Qxg6+ {[%clk 0:00:08]} 37... Kxg6 {[%clk 0:00:07.4]} 38.
Nd2 {[%clk 0:00:07.9]} 38... Rf7 {[%clk 0:00:06.3]} 39. Re6+ {[%clk 0:00:07.8]}
39... Kg7 {[%clk 0:00:05.8]} 40. Kf1 {[%clk 0:00:04.9]} 40... Bg5 {[%clk
0:00:03.9]} 41. Ne4 {[%clk 0:00:04.9]} 41... Re7 {[%clk 0:00:01.7]} 42. Nxg5
{[%clk 0:00:03.7]} 1-0

[Event "Late-Titled-Tuesday-Blitz-September-05-2023"]
[Site "Chess.com"]
[Date "2023.09.05"]
[Round "5"]
[White "tptagain"]
[Black "bascheyaro"]
[Result "1/2-1/2"]
[WhiteElo "2982"]
[BlackElo "2816"]
[TimeControl "180+1"]
[EndTime "14:57:00 PDT"]
[Termination "Game drawn by repetition"]

1. Nf3 {[%clk 0:03:00.9]} 1... d5 {[%clk 0:03:00.2]} 2. c4 {[%clk 0:03:00.8]}
2... c6 {[%clk 0:03:00.3]} 3. e3 {[%clk 0:03:00.4]} 3... Nf6 {[%clk 0:03:00.4]}
4. Nc3 {[%clk 0:03:01]} 4... a6 {[%clk 0:03:00.5]} 5. d4 {[%clk 0:03:00.6]} 5...
Bf5 {[%clk 0:03:00.3]} 6. h3 {[%clk 0:02:59.9]} 6... e6 {[%clk 0:03:00.4]} 7. g4
{[%clk 0:02:58.6]} 7... Be4 {[%clk 0:03:00.3]} 8. Nxe4 {[%clk 0:02:56.5]} 8...
Nxe4 {[%clk 0:03:00.4]} 9. Bg2 {[%clk 0:02:54.2]} 9... Qa5+ {[%clk 0:02:53]} 10.
Ke2 {[%clk 0:02:38.3]} 10... Nd7 {[%clk 0:02:36.6]} 11. Qc2 {[%clk 0:02:36.6]}
11... h5 {[%clk 0:02:31.5]} 12. g5 {[%clk 0:02:32.3]} 12... g6 {[%clk
0:02:30.5]} 13. h4 {[%clk 0:02:29.6]} 13... Nd6 {[%clk 0:02:30.1]} 14. b3 {[%clk
0:02:28.5]} 14... b5 {[%clk 0:01:46.7]} 15. Bd2 {[%clk 0:02:21.1]} 15... Qd8
{[%clk 0:01:46.5]} 16. c5 {[%clk 0:02:03.9]} 16... Nf5 {[%clk 0:01:42.1]} 17. a4
{[%clk 0:02:03.5]} 17... Bg7 {[%clk 0:01:40.7]} 18. Ra2 {[%clk 0:01:59.2]} 18...
O-O {[%clk 0:01:28.8]} 19. Rha1 {[%clk 0:01:53.4]} 19... Qb8 {[%clk 0:01:27.5]}
20. Bh3 {[%clk 0:01:33.1]} 20... bxa4 {[%clk 0:00:57.1]} 21. Rxa4 {[%clk
0:01:23]} 21... Nxh4 {[%clk 0:00:56]} 22. Nxh4 {[%clk 0:01:13.5]} 22... Qh2
{[%clk 0:00:55.8]} 23. Nxg6 {[%clk 0:00:54.1]} 23... fxg6 {[%clk 0:00:55.9]} 24.
Bxe6+ {[%clk 0:00:49.9]} 24... Kh7 {[%clk 0:00:56.3]} 25. Be1 {[%clk 0:00:36.9]}
25... Nb8 {[%clk 0:00:45.7]} 26. Rb4 {[%clk 0:00:32]} 26... Ra7 {[%clk
0:00:45.1]} 27. Rb6 {[%clk 0:00:10.5]} 27... Re7 {[%clk 0:00:44.7]} 28. Bxd5
{[%clk 0:00:11]} 28... Bxd4 {[%clk 0:00:41.5]} 29. Ra4 {[%clk 0:00:06.1]} 29...
Rxe3+ {[%clk 0:00:39.8]} 30. Kd1 {[%clk 0:00:06.6]} 30... Rxe1+ {[%clk
0:00:33.7]} 31. Kxe1 {[%clk 0:00:07.5]} 31... Rxf2 {[%clk 0:00:16.1]} 32. Rb7+
{[%clk 0:00:06.8]} 32... Kh8 {[%clk 0:00:12.1]} 33. Rxb8+ {[%clk 0:00:06.4]}
33... Qxb8 {[%clk 0:00:12.5]} 34. Qxg6 {[%clk 0:00:04.2]} 34... Qe5+ {[%clk
0:00:12.1]} 35. Be4 {[%clk 0:00:04.7]} 35... Rf7 {[%clk 0:00:06.4]} 36. Qxf7
{[%clk 0:00:03]} 36... Qxe4+ {[%clk 0:00:06.6]} 37. Kf1 {[%clk 0:00:02.8]} 37...
Qh1+ {[%clk 0:00:04.6]} 38. Ke2 {[%clk 0:00:02.9]} 38... Qe4+ {[%clk 0:00:05.3]}
39. Kf1 {[%clk 0:00:02.8]} 39... Qh1+ {[%clk 0:00:05.3]} 40. Ke2 {[%clk
0:00:03.2]} 40... Qe4+ {[%clk 0:00:05.5]} 41. Kf1 {[%clk 0:00:03.6]} 1/2-1/2